No of Transactions,Dept_Family,Entity_Name,Cert Date,Supplier Name,Reference,Gross Amt,Group/Department,Type of Expenditure - Subjective Codes
1,DCMS,Historic England,19/03/2018,Allen Valley Enterprise Ltd,0082005009,"53,035.00",Planning-Planning Department,Grants Payable Historic Buildings
2,DCMS,Historic England,07/03/2018,Amberley Museum &  Heritage Centre,0082004955,"81,171.00",Planning-Planning Department,Grants Payable Historic Buildings
3,DCMS,Historic England,12/03/2018,Ancient Monuments Society,0090515206,"40,615.00",Planning-Planning Department,Grants Payable Other Grants
4,DCMS,Historic England,16/03/2018,Apleona HSG Limited,0040117403,"12,679.67","Finance, HR & IMT-Facilities Management",Annual Cyclical Work M & E
5,DCMS,Historic England,16/03/2018,Apleona HSG Limited,0040117403,"6,883.02","Finance, HR & IMT-Facilities Management",Annual Cyclical Works-Building
6,DCMS,Historic England,16/03/2018,Apleona HSG Limited,0040117403,200.07,"Finance, HR & IMT-Facilities Management",Annual Cyclical Works-Building
7,DCMS,Historic England,16/03/2018,Apleona HSG Limited,0040117403,"11,021.96","Finance, HR & IMT-Facilities Management",Office Cleaning
8,DCMS,Historic England,16/03/2018,Apleona HSG Limited,0040117403,"6,467.60","Finance, HR & IMT-Facilities Management",Office Security & Cash Collect
9,DCMS,Historic England,16/03/2018,Appleby Castle Keep,0082004988,"27,539.00",Planning-Planning Department,Grants Payable Historic Buildings
10,DCMS,Historic England,26/03/2018,Birmingham City Council,0082005066,"105,582.00",Planning-Planning Department,Grants Payable Historic Buildings
11,DCMS,Historic England,15/03/2018,Blackstone Property Management Ltd,0040117519,"85,324.27","Finance, HR & IMT-Office Estate",Building Service Charges
12,DCMS,Historic England,08/03/2018,Boston Borough Council,0090515199,"64,497.00",Planning-Planning Department,Grants Payable Area
13,DCMS,Historic England,14/03/2018,Bournemouth University,0081004395,"28,000.00",Research-Strategic Planning & Mgmnt,Enabling Programmes Enabling Programmes
14,DCMS,Historic England,14/03/2018,Bournemouth University,0081004399,"25,358.00",Research-Strategic Planning & Mgmnt,Enabling Programmes Enabling Programmes
15,DCMS,Historic England,14/03/2018,Cheshire West and Chester Council,0081004410,"57,073.82",Research-Strategic Planning & Mgmnt,Enabling Programmes Enabling Programmes
16,DCMS,Historic England,15/03/2018,Claranet Ltd,0040117041,"53,904.80","Finance, HR & IMT-IMT",Hosting
17,DCMS,Historic England,21/03/2018,Clarendon Park Farms Ltd,0082005022,"33,506.00",Planning-Planning Department,Grants Payable Historic Buildings
18,DCMS,Historic England,29/03/2018,Colliers International Property Advisers,0040118282,"30,000.00",Research-Strategic Planning & Mgmnt,Hist Environ Prog Projects Gra
19,DCMS,Historic England,05/03/2018,Croft Building and Conservation Ltd,0040117263,"45,212.93",Shrewsbury Flax Mill Maltings-Shrewsbury Flax Mill Maltings,Works for Heritage Buildings
20,DCMS,Historic England,05/03/2018,Croft Building and Conservation Ltd,0040117332,"-45,212.93",Shrewsbury Flax Mill Maltings-Shrewsbury Flax Mill Maltings,Works for Heritage Buildings
21,DCMS,Historic England,06/03/2018,Croft Building and Conservation Ltd,0040117542,"474,766.90",Shrewsbury Flax Mill Maltings-Shrewsbury Flax Mill Maltings,Works for Heritage Buildings
22,DCMS,Historic England,16/03/2018,Croft Building and Conservation Ltd,0040117662,"32,464.97",Shrewsbury Flax Mill Maltings-Shrewsbury Flax Mill Maltings,Works for Heritage Buildings
23,DCMS,Historic England,23/03/2018,Croft Building and Conservation Ltd,0040117911,"27,440.14",Shrewsbury Flax Mill Maltings-Shrewsbury Flax Mill Maltings,Works for Heritage Buildings
24,DCMS,Historic England,12/03/2018,Daisy Communications Ltd,0040116944,"49,771.60","Finance, HR & IMT-IMT",Network Contracts
25,DCMS,Historic England,12/03/2018,Daisy Communications Ltd,0040117106,"57,844.07","Finance, HR & IMT-IMT",Network Contracts
26,DCMS,Historic England,14/03/2018,Daisy Communications Ltd,0040117618,"46,264.76","Finance, HR & IMT-IMT",Network Contracts
27,DCMS,Historic England,23/03/2018,Defra,0040117729,"72,000.00","Finance, HR & IMT-IMT",Software Licences <10k
28,DCMS,Historic England,12/03/2018,Derbyshire County Council,0082004963,"25,000.00",Planning-Planning Department,Grants Payable Historic Buildings
29,DCMS,Historic England,21/03/2018,Devon County Council,0081004451,"30,000.00",Research-Strategic Planning & Mgmnt,Enabling Programmes Enabling Programmes
30,DCMS,Historic England,16/03/2018,Eden District Council,0082004987,"83,700.00",Planning-Planning Department,Grants Payable Historic Buildings
31,DCMS,Historic England,12/03/2018,ESRI (UK) Ltd,0040117281,"271,500.00","Finance, HR & IMT-IMT",Software Maintenance
32,DCMS,Historic England,05/03/2018,Feilden Clegg Bradley Studios LLP,0040117472,"98,975.52",Shrewsbury Flax Mill Maltings-Shrewsbury Flax Mill Maltings,Fees for Professional Advice
33,DCMS,Historic England,21/03/2018,Forterra  Building Products Ltd,0081004431,"177,151.58",Research-Strategic Planning & Mgmnt,Enabling Programmes Enabling Programmes
34,DCMS,Historic England,07/03/2018,Freeman Historic Properties Ltd,0082004957,"25,000.00",Planning-Planning Department,Grants Payable Historic Buildings
35,DCMS,Historic England,28/03/2018,Geckoella Ltd,0040117974,"66,000.00",Research-Strategic Planning & Mgmnt,Hist Environ Prog Projects Gra
36,DCMS,Historic England,16/03/2018,Harlow Property Management Ltd,0040117655,"54,750.00","Finance, HR & IMT-Office Estate",Rent - Operating Leases
37,DCMS,Historic England,22/03/2018,Hart District Council,0040116904,"35,524.03",Planning-Planning Department,Fees for Professional Advice
38,DCMS,Historic England,21/03/2018,Harvey's Foundry Trust,0082005018,"34,033.00",Planning-Planning Department,Grants Payable Historic Buildings
39,DCMS,Historic England,07/03/2018,Heritage of London Trust Operations Ltd,0082004958,"71,323.00",Planning-Planning Department,Grants Payable Historic Buildings
40,DCMS,Historic England,26/03/2018,Heritage of London Trust Operations Ltd,0082005069,"54,091.00",Planning-Planning Department,Grants Payable Historic Buildings
41,DCMS,Historic England,14/03/2018,"Harsley Castle Farmhouse, Hambleton",0082004976,"32,200.00",Planning-Planning Department,Grants Payable Historic Buildings
42,DCMS,Historic England,14/03/2018,"Former Saxon Chapel, Priory Farm, Stonehouse",0082004979,"25,588.00",Planning-Planning Department,Grants Payable Historic Buildings
43,DCMS,Historic England,14/03/2018,Kings Lynn and West Norfolk BC,0090515231,"39,758.00",Planning-Planning Department,Grants Payable Other Grants
44,DCMS,Historic England,21/03/2018,Kingston upon Hull City Council,0090515258,"33,500.00",Planning-Planning Department,Grants Payable Area
45,DCMS,Historic England,16/03/2018,Lake District National Park Authority,0082004989,"49,950.00",Planning-Planning Department,Grants Payable Historic Buildings
46,DCMS,Historic England,21/03/2018,Leigh Building Preservation Trust,0082005048,"162,615.00",Planning-Planning Department,Grants Payable Historic Buildings
47,DCMS,Historic England,29/03/2018,Lemur Consulting Ltd t/a Flax,0040117863,"15,817.50","Finance, HR & IMT-IMT",System Developments <50k
48,DCMS,Historic England,29/03/2018,Lemur Consulting Ltd t/a Flax,0040117863,"5,272.50",Communications-Digital,Software Licences <10k
49,DCMS,Historic England,29/03/2018,Lemur Consulting Ltd t/a Flax,0040117863,"5,272.50",Communications-Digital,Software Licences <10k
50,DCMS,Historic England,29/03/2018,Lemur Consulting Ltd t/a Flax,0040117863,"2,109.00",Communications-Digital,Software Licences <10k
51,DCMS,Historic England,29/03/2018,Lemur Consulting Ltd t/a Flax,0040117863,"5,272.50",Communications-Digital,Software Licences <10k
52,DCMS,Historic England,28/03/2018,Lincolnshire County Council,0081004454,"35,000.00",Research-Strategic Planning & Mgmnt,Enabling Programmes Enabling Programmes
53,DCMS,Historic England,12/03/2018,Little Fish (UK) Ltd,0040117092,"46,490.32","Finance, HR & IMT-IMT",End User Contracts
54,DCMS,Historic England,23/03/2018,Little Fish (UK) Ltd,0040117561,"78,417.34","Finance, HR & IMT-IMT",End User Contracts
55,DCMS,Historic England,23/03/2018,Little Fish (UK) Ltd,0040117562,"44,043.60","Finance, HR & IMT-IMT",Service Management Contracts
56,DCMS,Historic England,14/03/2018,Llanthony Secunda Priory Trust,0082004978,"25,528.00",Planning-Planning Department,Grants Payable Historic Buildings
57,DCMS,Historic England,23/03/2018,Locus Consulting,0040117880,"35,068.00",Research-Strategic Planning & Mgmnt,Hist Environ Prog Projects Gra
58,DCMS,Historic England,26/03/2018,London Borough of Barnet,0082005070,"40,947.00",Planning-Planning Department,Grants Payable Historic Buildings
59,DCMS,Historic England,26/03/2018,London Borough of Ealing,0082005061,"66,861.00",Planning-Planning Department,Grants Payable Historic Buildings
60,DCMS,Historic England,19/03/2018,London Borough of Southwark,0082005017,"74,173.00",Planning-Planning Department,Grants Payable Historic Buildings
61,DCMS,Historic England,14/03/2018,Moseley Muslim Community Assoc,0082004974,"36,452.00",Planning-Planning Department,Grants Payable Historic Buildings
62,DCMS,Historic England,16/03/2018,"Brook Hall, Brokerswood",0082004983,"86,268.00",Planning-Planning Department,Grants Payable Historic Buildings
63,DCMS,Historic England,19/03/2018,"Manor Farm Chapel, Golden Hill",0082005016,"43,115.00",Planning-Planning Department,Grants Payable Historic Buildings
64,DCMS,Historic England,21/03/2018,"Old Oxgate Farm, Cricklewood",0082005023,"31,383.00",Planning-Planning Department,Grants Payable Historic Buildings
65,DCMS,Historic England,28/03/2018,Museum of London Arch Services,0081004455,"25,000.00",Research-Strategic Planning & Mgmnt,Enabling Programmes Enabling Programmes
66,DCMS,Historic England,07/03/2018,Norwich City Council,0082004960,"34,125.00",Planning-Planning Department,Grants Payable Historic Buildings
67,DCMS,Historic England,08/03/2018,Nottingham City Council,0090515197,"50,000.00",Planning-Planning Department,Grants Payable Area
68,DCMS,Historic England,08/03/2018,Nottingham City Council,0090515198,"50,000.00",Planning-Planning Department,Grants Payable Area
69,DCMS,Historic England,07/03/2018,PCC Of Westbury-on-Severn,0082004953,"85,500.00",Planning-Planning Department,Grants Payable Places Of Worship
70,DCMS,Historic England,26/03/2018,Pella Heritage Ltd,0082005060,"42,000.00",Planning-Planning Department,Grants Payable Historic Buildings
71,DCMS,Historic England,02/03/2018,Public Monuments and Sculpt Assoc,0090515180,"32,025.00",Planning-Planning Department,Grants Payable Other Grants
72,DCMS,Historic England,19/03/2018,Ratcliffes,0040117681,"283,500.00","Finance, HR & IMT-Office Estate",Rent - Operating Leases
73,DCMS,Historic England,05/03/2018,Reading Borough Council,0082004944,"93,075.00",Planning-Planning Department,Grants Payable Historic Buildings
74,DCMS,Historic England,19/03/2018,Reading Borough Council,0082005008,"51,100.00",Planning-Planning Department,Grants Payable Historic Buildings
75,DCMS,Historic England,05/03/2018,Rochdale Borough Council,0082004949,"124,869.00",Planning-Planning Department,Grants Payable Historic Buildings
76,DCMS,Historic England,14/03/2018,SecureData Europe Ltd,0040117584,"128,373.60","Finance, HR & IMT-IMT",Service Management Contracts
77,DCMS,Historic England,29/03/2018,Senator International Ltd,0040118379,"9,076.80","Finance, HR & IMT-Finance & Procurement Dept",Furniture <10k
78,DCMS,Historic England,29/03/2018,Senator International Ltd,0040118379,"9,076.80","Finance, HR & IMT-Finance & Procurement Dept",Furniture <10k
79,DCMS,Historic England,29/03/2018,Senator International Ltd,0040118379,"15,745.20","Finance, HR & IMT-Finance & Procurement Dept",Furniture and Fittings > 10k
80,DCMS,Historic England,29/03/2018,Senator International Ltd,0040118380,"6,203.04","Finance, HR & IMT-Finance & Procurement Dept",Furniture <10k
81,DCMS,Historic England,29/03/2018,Senator International Ltd,0040118380,"6,203.04","Finance, HR & IMT-Finance & Procurement Dept",Furniture <10k
82,DCMS,Historic England,29/03/2018,Senator International Ltd,0040118380,"6,203.04","Finance, HR & IMT-Finance & Procurement Dept",Furniture <10k
83,DCMS,Historic England,29/03/2018,Senator International Ltd,0040118380,369.50,"Finance, HR & IMT-Finance & Procurement Dept",Furniture <10k
84,DCMS,Historic England,29/03/2018,Senator International Ltd,0040118380,"3,726.00","Finance, HR & IMT-Finance & Procurement Dept",Furniture <10k
85,DCMS,Historic England,29/03/2018,Senator International Ltd,0040118380,"1,760.40","Finance, HR & IMT-Finance & Procurement Dept",Furniture <10k
86,DCMS,Historic England,29/03/2018,Senator International Ltd,0040118380,"1,760.40","Finance, HR & IMT-Finance & Procurement Dept",Furniture <10k
87,DCMS,Historic England,29/03/2018,Senator International Ltd,0040118380,"1,760.40","Finance, HR & IMT-Finance & Procurement Dept",Furniture <10k
88,DCMS,Historic England,29/03/2018,Senator International Ltd,0040118380,"3,805.06","Finance, HR & IMT-Finance & Procurement Dept",Furniture <10k
89,DCMS,Historic England,29/03/2018,Senator International Ltd,0040118380,"3,805.06","Finance, HR & IMT-Finance & Procurement Dept",Furniture <10k
90,DCMS,Historic England,29/03/2018,Senator International Ltd,0040118380,"1,262.49","Finance, HR & IMT-Finance & Procurement Dept",Furniture <10k
91,DCMS,Historic England,29/03/2018,Senator International Ltd,0040118380,"1,663.20","Finance, HR & IMT-Finance & Procurement Dept",Furniture <10k
92,DCMS,Historic England,29/03/2018,Senator International Ltd,0040118380,"1,663.20","Finance, HR & IMT-Finance & Procurement Dept",Furniture <10k
93,DCMS,Historic England,29/03/2018,Senator International Ltd,0040118380,892.85,"Finance, HR & IMT-Finance & Procurement Dept",Furniture <10k
94,DCMS,Historic England,29/03/2018,Senator International Ltd,0040118380,735.67,"Finance, HR & IMT-Finance & Procurement Dept",Furniture <10k
95,DCMS,Historic England,29/03/2018,Senator International Ltd,0040118380,916.56,"Finance, HR & IMT-Finance & Procurement Dept",Furniture <10k
96,DCMS,Historic England,29/03/2018,Senator International Ltd,0040118380,916.56,"Finance, HR & IMT-Finance & Procurement Dept",Furniture <10k
97,DCMS,Historic England,29/03/2018,Senator International Ltd,0040118380,"2,444.16","Finance, HR & IMT-Finance & Procurement Dept",Furniture <10k
98,DCMS,Historic England,12/03/2018,"Paull Holme Tower, Paull",0082004967,"44,380.00",Planning-Planning Department,Grants Payable Historic Buildings
99,DCMS,Historic England,08/03/2018,Skylarkeology,0081004377,"35,000.00",Research-Strategic Planning & Mgmnt,Enabling Programmes Enabling Programmes
100,DCMS,Historic England,05/03/2018,Snodhill Castle Preservation Trust,0082004940,"104,271.00",Planning-Planning Department,Grants Payable Historic Buildings
101,DCMS,Historic England,12/03/2018,Soc for the Protection of Ancient Bldgs,0090515207,"29,066.00",Planning-Planning Department,Grants Payable Other Grants
102,DCMS,Historic England,12/03/2018,Soc for the Protection of Ancient Bldgs,0090515208,"40,615.00",Planning-Planning Department,Grants Payable Other Grants
103,DCMS,Historic England,20/03/2018,SoftwareOne UK Ltd,0040117422,"36,574.56","Finance, HR & IMT-IMT",Software Maintenance
104,DCMS,Historic England,28/03/2018,South Kesteven District Council,0090515281,"34,893.00",Planning-Planning Department,Grants Payable Area
105,DCMS,Historic England,14/03/2018,Southwell & Nottingham DBF- Finance,0082004973,"48,424.00",Planning-Planning Department,Grants Payable Historic Buildings
106,DCMS,Historic England,12/03/2018,Specialist Computer Centres plc,0040117504,"55,161.15","Finance, HR & IMT-IMT",Computer Equipment <10k
107,DCMS,Historic England,16/03/2018,St Mary's Cemetery,0082004991,"47,200.00",Planning-Planning Department,Grants Payable Historic Buildings
108,DCMS,Historic England,21/03/2018,Stow Maries Great War Aerodrome Ltd,0082005050,"150,000.00",Planning-Planning Department,Grants Payable Historic Buildings
109,DCMS,Historic England,05/03/2018,Sunderland City Council,0082004941,"34,928.00",Planning-Planning Department,Grants Payable Historic Buildings
110,DCMS,Historic England,28/03/2018,Taunton Deane Borough Council,0082005078,"97,500.00",Planning-Planning Department,Grants Payable Historic Buildings
111,DCMS,Historic England,19/03/2018,Thanet District Council,0090515250,"31,159.48",Planning-Planning Department,Grants Payable Other Grants
112,DCMS,Historic England,19/03/2018,The Architectural Heritage Fund,0020072324,"40,000.00",Planning-Planning Department,National Capacity Building
113,DCMS,Historic England,07/03/2018,The Architectural Heritage Fund,0090515190,"42,350.00",Planning-Planning Department,Grants Payable Other Grants
114,DCMS,Historic England,12/03/2018,The Architectural Heritage Fund,0090515211,"428,216.00",Planning-Planning Department,Grants Payable Other Grants
115,DCMS,Historic England,21/03/2018,The Brancepeth Castle Discretionary,0082005027,"104,000.00",Planning-Planning Department,Grants Payable Historic Buildings
116,DCMS,Historic England,23/03/2018,The Churches Conservation Trust,0040117898,"29,866.23",Engagement-Government Advice Department,Other Grants
117,DCMS,Historic England,14/03/2018,The Gardens Trust (Localism),0090515225,"63,198.00",Planning-Planning Department,Grants Payable Other Grants
118,DCMS,Historic England,14/03/2018,The Gardens Trust (SC),0090515224,"40,615.00",Planning-Planning Department,Grants Payable Other Grants
119,DCMS,Historic England,16/03/2018,The General Cemetery Co,0082004982,"29,160.00",Planning-Planning Department,Grants Payable Historic Buildings
120,DCMS,Historic England,16/03/2018,The General Cemetery Co,0082004985,"56,114.00",Planning-Planning Department,Grants Payable Historic Buildings
121,DCMS,Historic England,21/03/2018,The Heritage Alliance,0081004436,"30,000.00",Research-Strategic Planning & Mgmnt,Enabling Programmes Enabling Programmes
122,DCMS,Historic England,26/03/2018,The Lupton Trust,0082005059,"39,579.00",Planning-Planning Department,Grants Payable Historic Buildings
123,DCMS,Historic England,28/03/2018,The Princes Foundation,0081004480,"25,000.00",Research-Strategic Planning & Mgmnt,Enabling Programmes Enabling Programmes
124,DCMS,Historic England,14/03/2018,The Victorian Society,0090515220,"30,461.00",Planning-Planning Department,Grants Payable Other Grants
125,DCMS,Historic England,28/03/2018,Thurrock Council,0082005077,"69,920.00",Planning-Planning Department,Grants Payable Historic Buildings
126,DCMS,Historic England,14/03/2018,Tortworth Estate Company,0082004977,"33,600.00",Planning-Planning Department,Grants Payable Historic Buildings
127,DCMS,Historic England,05/03/2018,Trinity Community Arts Ltd,0082004939,"31,829.00",Planning-Planning Department,Grants Payable Historic Buildings
128,DCMS,Historic England,21/03/2018,Trinity Community Arts Ltd,0082005021,"37,135.00",Planning-Planning Department,Grants Payable Historic Buildings
129,DCMS,Historic England,21/03/2018,Tyne & Wear Building Preservation Trust,0082005055,"47,355.00",Planning-Planning Department,Grants Payable Historic Buildings
130,DCMS,Historic England,28/03/2018,University College London,0081004482,"55,000.00",Research-Strategic Planning & Mgmnt,Enabling Programmes Enabling Programmes
131,DCMS,Historic England,28/03/2018,University of Leicester,0040118018,"12,500.00",Research-Strategic Planning & Mgmnt,Hist Environ Prog Projects Gra
132,DCMS,Historic England,28/03/2018,University of Leicester,0040118018,"8,333.34",Research-Strategic Planning & Mgmnt,Hist Environ Prog Projects Gra
133,DCMS,Historic England,28/03/2018,University of Leicester,0040118018,"4,166.66",Research-Strategic Planning & Mgmnt,Hist Environ Prog Projects Gra
134,DCMS,Historic England,28/03/2018,University of York,0040117735,"60,000.00",Research-Strategic Planning & Mgmnt,Hist Environ Prog Projects Gra
135,DCMS,Historic England,19/03/2018,Urban Splash (Royal William Yard) Ltd,0082004996,"25,907.00",Planning-Planning Department,Grants Payable Historic Buildings
136,DCMS,Historic England,26/03/2018,"W H Smith, PR Ensor SAP & Halston Dev.",0040117993,"35,516.40","Finance, HR & IMT-Office Estate",Rent - Operating Leases
137,DCMS,Historic England,12/03/2018,Wakefield MDC,0082004964,"29,377.00",Planning-Planning Department,Grants Payable Historic Buildings
138,DCMS,Historic England,12/03/2018,War Memorials Trust,0090515210,"36,000.00",Planning-Planning Department,Grants Payable Other Grants
139,DCMS,Historic England,26/03/2018,Wentworth Woodhouse Preservation Trust,0082005067,"428,301.00",Planning-Planning Department,Grants Payable Historic Buildings
140,DCMS,Historic England,27/03/2018,Wessex Archaeology Ltd,0040118019,"93,600.00",Research-Strategic Planning & Mgmnt,Hist Environ Prog Projects Gra
141,DCMS,Historic England,14/03/2018,Wiltshire Council,0090515236,"46,037.00",Planning-Planning Department,Grants Payable Other Grants
